bitfinex/quotes_SOLUSD_20251120
["timestamp","ask_amount","ask_price","bid_price","bid_amount"]
[1763648946617,1.74,141.03,141.0,12.14902871]
[1763648947119,18.54096,141.02,140.98,12.14902871]
[1763648947292,12.14902871,141.0,140.94,12.14902871]
[1763648947497,1.74,140.99,140.94,12.14902871]
[1763648947699,1.74,140.99,140.95,12.14902871]
[1763648948021,1.74,140.99,140.94,12.14902871]
[1763648948204,1.74,140.99,140.96,12.14902871]
[1763648948606,1.74,140.99,140.97,12.14902871]
[1763648948997,8.83277117,140.99,140.96,12.14902871]
[1763648949415,1.74,140.99,140.96,12.81902871]
[1763648949607,0.42,141.09,140.98,12.14902871]
[1763648949815,1.74,141.08,141.04,12.14902871]
[1763648950322,7.50867937,141.07,141.04,12.14902871]
[1763648950497,7.50867937,141.07,141.03,12.14902871]
[1763648950695,18.12096,141.05,140.98,0.67]
[1763648951021,18.12096,141.05,141.0,12.14902871]
[1763648951022,1.74,141.04,141.0,12.14902871]
[1763648951409,2.16,141.04,140.96,0.67]
[1763648951608,2.16,141.04,140.99,12.14902871]
[1763648951922,14.30902871,141.04,140.99,12.14902871]
[1763648952126,2.16,141.04,140.99,12.14902871]
[1763648952416,2.16,141.04,140.97,0.67]
[1763648952417,9.25037407,141.04,141.0,12.14902871]
[1763648953222,26.97584202,141.04,141.0,12.14902871]
[1763648953405,39.12487073,141.04,140.99,12.14902871]
[1763648953924,8.83037407,141.04,141.0,12.14902871]
[1763648954118,1.74,141.04,141.0,12.14902871]
[1763648954319,1.74,141.04,141.02,12.14902871]
[1763648954509,8.8302182,141.04,141.02,12.14902871]
[1763648955010,8.8302182,141.04,141.0,12.14902871]
[1763648955011,9.2502182,141.04,141.0,12.14902871]
[1763648955215,26.97568615,141.04,141.0,12.14902871]
[1763648955519,8.8302182,141.04,141.01,12.14902871]
[1763648955719,9.2502182,141.04,141.01,12.14902871]
[1763648955932,26.97568615,141.04,141.0,12.14902871]
[1763648956092,26.55568615,141.04,141.0,12.14902871]
[1763648956305,8.8302182,141.04,141.01,12.14902871]
[1763648956512,8.8302182,141.04,141.0,0.67]
[1763648956709,9.2502182,141.04,141.01,12.14902871]
[1763648957208,8.8302182,141.04,141.01,12.14902871]
[1763648958109,8.8302182,141.04,140.98,0.67]
[1763648958420,8.8302182,141.04,141.01,12.14902871]
[1763648958808,0.42,141.03,141.01,12.14902871]
[1763648959038,8.8302182,141.04,141.01,12.14902871]
[1763648959213,26.97568615,141.04,141.01,12.14902871]
[1763648960905,26.97568615,141.04,140.98,0.67]
[1763648961105,26.97568615,141.04,141.01,12.14902871]
[1763648961306,9.2502182,141.04,141.01,12.14902871]
[1763648963612,26.55568615,141.04,141.01,12.14902871]
[1763648963922,26.97568615,141.04,141.01,12.16440084]
[1763648964921,9.2502182,141.04,141.01,12.16440084]
[1763648965233,1.74,141.04,141.02,12.16440084]
[1763648965626,8.83018718,141.04,141.01,12.16440084]
[1763648965937,8.83018718,141.04,141.02,12.16440084]
[1763648966111,9.25018718,141.04,141.02,12.16440084]
[1763648966314,9.25018718,141.04,140.99,0.69]
[1763648966510,9.25018718,141.04,141.02,12.16440084]
[1763648966726,8.83018718,141.04,141.02,12.16440084]
[1763648967643,8.83018718,141.04,141.0,0.69]
[1763648967841,8.83018718,141.04,141.02,12.16440084]
[1763648968043,1.74,141.04,141.03,12.16440084]
[1763648968343,0.42,141.07,141.0,0.69]
[1763648968344,1.74,141.08,141.01,1.74]
[1763648968522,2.44,141.08,141.01,1.74]
[1763648968716,2.44,141.08,141.05,12.16440084]
[1763648968916,7.08867937,141.07,141.06,12.16440084]
[1763648970122,9.52834079,141.08,141.06,12.16440084]
[1763648971228,0.72,141.07,141.03,12.16440084]
[1763648972136,0.72,141.07,140.98,0.66]
[1763648972137,18.12096,141.03,140.98,0.66]
[1763648972324,1.74,141.02,140.98,12.16440084]
[1763648972524,2.46,141.02,140.98,12.16440084]
[1763648972847,7.09219858,141.0,140.98,6.98945523]
[1763648973050,1.74,140.99,140.96,6.98945523]
[1763648973420,1.74,140.99,140.97,6.98945523]
[1763648973643,2.46,140.99,140.97,6.98945523]
[1763648974234,2.46,140.99,140.96,6.98945523]
[1763648974235,9.55289899,140.99,140.96,6.98945523]
[1763648976153,8.83289899,140.99,140.97,6.98945523]
[1763648977442,9.55289899,140.99,140.97,6.98945523]
[1763648977848,18.12096,141.0,140.98,6.98945523]
[1763648978032,19.86096,141.0,140.98,6.98945523]
[1763648978446,19.86096,141.0,140.99,7.64945523]
[1763648978633,1.74,141.0,140.99,6.98945523]
[1763648978962,0.72,141.06,140.99,7.64945523]
[1763648979252,0.72,141.06,140.96,6.98945523]
[1763648979253,1.74,141.05,141.04,6.98945523]
[1763648979830,1.74,141.05,140.97,9.78882769]
[1763648979831,1.74,141.05,141.0,0.66]
[1763648980042,1.74,141.05,141.04,6.98945523]
[1763648980226,7.08767453,141.09,141.04,7.64945523]
[1763648980432,7.08767453,141.09,141.0,7.09218859]
[1763648980433,1.74,141.08,141.05,6.98945523]
[1763648980826,19.86096,141.08,141.05,6.98945523]
[1763648981232,19.86096,141.08,141.05,7.64945523]
[1763648981437,20.58096,141.08,141.04,6.98945523]
[1763648981856,0.72,141.07,141.03,6.98945523]
[1763648982229,7.0891819,141.06,141.03,6.98945523]
[1763648982454,1.74,141.05,141.03,6.98945523]
[1763648982850,1.74,141.05,141.04,7.64945523]
[1763648983252,1.99999999,141.16,141.04,7.64945523]
[1763648983253,0.72,141.12,141.04,7.64945523]
[1763648983544,1.74,141.11,141.08,6.98945523]
[1763648983735,1.74,141.11,141.07,6.98945523]
[1763648984153,2.46,141.11,141.07,6.98945523]
[1763648984342,7.08717221,141.1,141.07,6.98945523]
[1763648984833,9.54684583,141.11,141.07,6.98945523]
[1763648985154,9.54684583,141.11,141.07,7.64945523]
[1763648985461,1.74,141.11,141.1,6.98945523]
[1763648985641,0.82,141.17,141.1,6.98945523]
[1763648985841,1.74,141.16,141.14,6.98945523]
[1763648986164,0.1,141.17,141.15,6.98945523]
[1763648986365,0.1,141.17,141.14,6.98945523]
[1763648986541,7.18403549,141.17,141.15,6.98945523]
[1763648986742,0.72,141.16,141.11,0.66]
[1763648986952,1.74,141.16,141.12,0.66]
[1763648987149,1.74,141.16,141.12,6.98945523]
[1763648987462,1.74,141.16,141.12,7.64945523]
[1763648988037,1.74,141.16,141.13,6.98945523]
[1763648988252,1.74,141.16,141.12,0.66]
[1763648988439,1.74,141.16,141.12,7.64945523]
[1763648988653,7.0846617,141.15,141.12,0.66]
[1763648989164,1.74,141.16,141.14,6.98945523]
[1763648989370,1.74,141.16,141.15,6.98945523]
[1763648989533,0.1,141.17,141.15,7.64945523]
[1763648989733,0.1,141.17,141.16,6.98945523]
[1763648989953,7.183658,141.17,141.16,6.98945523]
[1763648990743,7.183658,141.17,141.15,0.66]
[1763648991269,7.183658,141.17,141.15,6.98945523]
[1763648991469,0.69,141.16,141.14,6.98945523]
[1763648991763,26.632803,141.17,141.08,29.64978769]
[1763648991955,26.632803,141.17,141.09,7.76767453]
[1763648992162,26.632803,141.17,141.14,6.98945523]
[1763648992356,8.923658,141.17,141.14,6.98945523]
[1763648992573,0.69,141.16,141.12,0.68]
[1763648992878,18.12096,141.14,141.09,6.98945523]
[1763648993050,1.74,141.13,141.08,6.98945523]
[1763648993260,2.43,141.13,141.06,6.98945523]
[1763648993455,18.81096,141.12,141.05,0.68]
[1763648993655,18.81096,141.12,141.06,6.98945523]
[1763648993876,0.69,141.11,141.01,0.68]
[1763648994188,1.74,141.1,141.04,6.98945523]
[1763648994374,1.74,141.1,141.02,0.68]
[1763648994571,0.69,141.09,141.05,6.98945523]
[1763648994776,0.69,141.09,141.04,6.98945523]
[1763648994985,7.77788647,141.09,141.04,6.98945523]
[1763648995154,7.77788647,141.09,141.02,0.68]
[1763648995355,7.77788647,141.09,141.05,6.98945523]
[1763648995695,7.77788647,141.09,141.01,0.68]
[1763648995862,7.77788647,141.09,141.05,6.98945523]
[1763648996292,7.08788647,141.09,141.05,7.66945523]
[1763648996456,8.82766997,141.1,141.07,6.98945523]
[1763648996993,1.74,141.1,141.08,7.66945523]
[1763648997199,7.08648364,141.12,141.08,0.68]
[1763648997486,0.1,141.17,141.11,6.98945523]
[1763648997487,1.74,141.15,141.11,6.98945523]
[1763648997696,1.74,141.15,141.12,6.98945523]
[1763648997869,1.74,141.15,141.13,6.98945523]
[1763648998075,1.74,141.15,141.09,9.78882769]
[1763648998270,1.74,141.15,141.08,0.68]
[1763648998271,1.74,141.15,141.11,6.98945523]
[1763648998475,1.74,141.15,141.12,6.98945523]
[1763648998673,8.82512519,141.15,141.09,7.08765998]
[1763648998983,8.82512519,141.15,141.12,6.98945523]
[1763648999292,1.74,141.15,141.13,6.98945523]
[1763648999453,8.82467865,141.15,141.13,6.98945523]
[1763648999650,8.82467865,141.15,141.11,0.68]
[1763648999876,8.82467865,141.15,141.12,6.98945523]
[1763649000099,0.1,141.17,141.14,6.98945523]
[1763649000288,0.1,141.17,141.16,6.98945523]
[1763649000496,0.1,141.17,141.13,9.78882769]
[1763649000795,0.1,141.19,141.16,14.07361504]
[1763649001086,0.1,141.19,141.11,23.75866699]
[1763649001087,0.79,141.19,141.11,0.70866699]
[1763649001267,0.1,141.19,141.17,6.98945523]
[1763649001468,0.1,141.19,141.13,0.68]
[1763649001469,7.87267999,141.19,141.13,0.68]
[1763649001667,0.1,141.19,141.18,6.98945523]
[1763649001965,0.1,141.27,141.19,9.78882769]
[1763649002278,0.1,141.27,141.26,6.98945523]
[1763649002479,0.1,141.27,141.26,7.66945523]
[1763649002668,1.93593088,141.39,141.3,7.07714083]
[1763649002859,0.69,141.37,141.28,9.78882769]
[1763649003058,3.67593088,141.39,141.3,6.98945523]
[1763649003059,0.69,141.35,141.3,6.98945523]
[1763649003273,0.69,141.35,141.29,0.68]
[1763649003475,0.69,141.34,141.3,6.98945523]
[1763649003783,3.67593088,141.39,141.3,6.98945523]
[1763649003784,1.93593088,141.39,141.31,9.78882769]
[1763649003964,1.93593088,141.39,141.38,6.98945523]
[1763649004157,1.93593088,141.39,141.38,7.66945523]
[1763649004558,1.93593088,141.39,141.38,19.19828292]
[1763649004758,1.93593088,141.39,141.36,0.68]
[1763649004970,1.93593088,141.39,141.38,6.98945523]
[1763649005585,1.93593088,141.39,141.33,18.12096]
[1763649005586,9.69860036,141.39,141.28,0.68]
[1763649005769,18.12096,141.36,141.3,6.98945523]
[1763649006083,18.12096,141.36,141.28,6.98945523]
[1763649006285,0.69,141.35,141.26,0.68]
[1763649006490,0.69,141.35,141.28,6.98945523]
[1763649006688,0.69,141.35,141.27,6.98945523]
[1763649006858,18.12096,141.31,141.22,0.68]
[1763649007064,18.12096,141.3,141.23,6.98945523]
[1763649007381,18.12096,141.26,141.16,0.68]
[1763649007602,19.86096,141.26,141.18,6.98945523]
[1763649007768,18.81096,141.25,141.19,6.98945523]
[1763649007971,1.93593088,141.39,141.24,6.98945523]
[1763649008176,18.12096,141.31,141.18,1.74]
[1763649008385,11.52882769,141.3,141.21,6.98945523]
[1763649008690,11.52882769,141.3,141.17,1.74]
[1763649008691,0.69,141.3,141.26,6.98945523]
[1763649008904,26.935928,141.35,141.28,6.98945523]
[1763649009075,0.69,141.31,141.22,27.90978769]
[1763649009417,18.81096,141.31,141.19,0.68]
[1763649009697,18.81096,141.31,141.24,6.98945523]
[1763649009882,18.12096,141.31,141.26,6.98945523]
[1763649010081,0.69,141.33,141.28,6.98945523]
[1763649010287,18.81096,141.34,141.3,6.98945523]
[1763649010490,0.69,141.33,141.27,0.68]
[1763649010809,0.69,141.34,141.27,0.68]
[1763649011005,0.69,141.34,141.3,6.98945523]
[1763649011303,0.69,141.34,141.25,1.74]
[1763649011620,0.69,141.34,141.23,0.70806485]
[1763649011804,18.12096,141.32,141.25,6.98945523]
[1763649012102,18.12096,141.32,141.23,0.68]
[1763649012307,9.5047983,141.35,141.29,6.98945523]
[1763649012496,0.69,141.34,141.23,2.42]
[1763649012695,0.69,141.34,141.26,6.98945523]
[1763649012876,24.76473501,141.33,141.26,6.98945523]
[1763649013077,24.76473501,141.33,141.27,6.98945523]
[1763649013277,0.69,141.32,141.27,6.98945523]
[1763649013496,18.81096,141.32,141.21,18.80096]
[1763649013708,18.12096,141.26,141.14,0.68]
[1763649013912,1.74,141.25,141.14,0.68]
[1763649014088,2.43,141.25,141.17,6.98945523]
[1763649014284,2.43,141.25,141.14,0.68]
[1763649014285,18.12096,141.23,141.14,0.68]
[1763649014678,0.69,141.22,141.14,0.68]
[1763649015012,18.12096,141.24,141.19,6.98945523]
[1763649015197,0.69,141.23,141.18,6.98945523]
[1763649015392,0.69,141.23,141.15,0.68]
[1763649015583,0.69,141.23,141.13,9.78882769]
[1763649015904,0.69,141.23,141.18,6.98945523]
[1763649016406,0.69,141.23,141.12,25.11041523]
[1763649016607,18.12096,141.19,141.1,6.98945523]
[1763649016789,24.79807282,141.14,141.04,0.68]
[1763649017103,1.74,141.13,141.09,6.98945523]
[1763649017416,1.74,141.17,141.12,6.98945523]
[1763649017581,1.74,141.17,141.14,6.98945523]
[1763649017786,0.69,141.22,141.16,6.98945523]
[1763649018007,0.69,141.22,141.14,0.68]
[1763649018209,25.89212009,141.22,141.15,6.98945523]
[1763649018386,43.59504456,141.22,141.1,18.12096]
[1763649018588,18.12096,141.18,141.07,9.78882769]
[1763649018793,7.08415981,141.16,141.11,6.98945523]
[1763649019015,2.43,141.17,141.12,6.98945523]
[1763649019200,1.74,141.17,141.12,6.98945523]
[1763649019504,1.74,141.17,141.09,6.98945523]
[1763649019505,0.69,141.16,141.09,6.98945523]
[1763649019822,0.69,141.16,141.06,0.2]
[1763649019823,18.12096,141.1,141.06,0.2]
[1763649020149,1.74,141.09,140.94,6.98945523]
[1763649020291,18.12096,141.05,140.97,6.98945523]
[1763649020607,1.74,141.04,140.94,0.72]
[1763649020785,56.98945523,141.16,140.98,1.99999999]
[1763649020786,1.74,141.03,140.98,1.99999999]
[1763649020983,1.74,141.03,140.98,8.98945522]
[1763649021216,1.74,141.03,141.0,1.99999999]
[1763649021398,1.74,141.03,140.99,6.98945523]
[1763649021399,1.74,141.03,140.99,1.99999999]
[1763649021713,1.74,141.03,140.92,5.70463761]
[1763649021916,1.74,141.03,140.91,1.99999999]
[1763649022291,1.74,141.03,140.89,8.98945522]
[1763649022485,1.74,141.03,140.9,6.98945523]
[1763649022698,23.08015889,141.03,140.88,2.19999999]
[1763649023015,88.19775137,140.99,140.88,2.19999999]
[1763649023319,0.7,141.02,140.92,6.98945523]
[1763649023535,18.12096,140.99,140.95,1.99999999]
[1763649023703,83.55992914,141.11,140.89,0.72]
[1763649023704,9.78882769,141.12,140.99,1.99999999]
[1763649023913,9.78882769,141.09,140.98,1.99999999]
[1763649024112,0.7,141.1,141.02,1.99999999]
[1763649024322,0.7,141.1,141.0,8.98945522]
[1763649024520,0.7,141.1,141.02,8.98945522]
[1763649024706,18.12096,141.09,141.02,1.99999999]
[1763649024909,1.74,141.11,141.03,1.99999999]
[1763649025153,8.82675042,141.11,141.03,1.99999999]
[1763649025316,8.82675042,141.11,141.01,1.99999999]
[1763649025317,18.12096,141.08,141.01,1.99999999]
[1763649025501,18.12096,141.08,140.99,1.99999999]
[1763649025696,18.12096,141.08,141.01,1.99999999]
[1763649025902,18.82096,141.08,140.99,1.99999999]
[1763649026099,9.78882769,141.06,140.97,1.99999999]
[1763649026306,18.12096,141.04,140.95,1.99999999]
[1763649026516,18.12096,141.04,140.96,1.99999999]
[1763649026709,18.12096,141.04,140.96,8.98945522]
[1763649027009,18.12096,141.0,140.96,1.99999999]
[1763649027321,7.78516366,141.14,141.04,1.99999999]
[1763649027501,7.78516366,141.14,141.06,8.98945522]
[1763649027502,1.74,141.13,141.06,8.98945522]
[1763649027701,2.44,141.13,141.03,1.99999999]
[1763649027902,2.44,141.13,141.04,1.99999999]
[1763649028202,18.12096,141.11,141.05,1.99999999]
[1763649028637,0.7,141.12,141.0,1.99999999]
[1763649028638,0.7,141.1,141.0,1.99999999]
[1763649028845,1.74,141.09,140.97,1.99999999]
[1763649029135,1.74,141.09,140.95,8.98945522]
[1763649029305,1.74,141.09,140.96,1.99999999]
[1763649029506,1.74,141.09,140.95,1.99999999]
[1763649029824,1.74,141.09,140.98,1.99999999]
[1763649030019,35.42581833,141.14,141.02,1.99999999]
[1763649030335,19.45416424,141.13,141.01,1.99999999]
[1763649030638,19.45416424,141.13,141.0,1.99999999]
[1763649030842,18.12096,141.05,140.97,2.69999999]
[1763649031008,1.74,141.04,140.98,1.99999999]
[1763649031432,1.74,141.04,140.9,1.99999999]
[1763649031433,9.78882769,141.02,140.9,1.99999999]
[1763649031633,18.12096,140.99,140.91,1.99999999]
[1763649031857,1.74,140.98,140.93,1.99999999]
[1763649032217,1.74,140.98,140.91,1.99999999]
[1763649032418,1.74,140.98,140.92,1.99999999]
[1763649032837,18.12096,140.97,140.92,1.99999999]
[1763649033036,26.95419852,140.98,140.92,1.99999999]
[1763649033228,44.68721029,140.98,140.92,1.99999999]
[1763649033429,26.95419852,140.98,140.92,1.99999999]
[1763649033626,1.74,141.0,140.95,1.99999999]
[1763649033830,1.74,141.0,140.94,1.99999999]
[1763649034156,1.74,141.0,140.96,1.99999999]
[1763649034656,1.74,141.0,140.94,1.99999999]
[1763649034941,1.74,141.0,140.96,1.99999999]
[1763649035245,26.56272207,141.0,140.93,1.99999999]
[1763649035437,18.12096,140.99,140.94,1.99999999]
[1763649035633,1.74,141.0,140.95,1.99999999]
[1763649035837,24.80510275,141.1,140.98,1.99999999]
[1763649036138,24.80510275,141.1,141.04,1.99999999]
[1763649036139,26.54510275,141.1,141.04,1.99999999]
[1763649036441,18.12096,141.07,141.03,1.99999999]
[1763649036747,1.74,141.06,141.01,1.99999999]
[1763649036924,7.09119273,141.02,140.96,1.99999999]
[1763649037246,18.12096,140.99,140.96,1.99999999]
[1763649037445,18.12096,140.99,140.92,9.78882769]
[1763649037446,18.12096,140.99,140.92,1.99999999]
[1763649037741,27.90978769,140.98,140.9,1.99999999]
[1763649037944,0.14,140.99,140.88,0.2]
[1763649037945,18.12096,140.93,140.88,0.2]
[1763649038162,1.74,140.92,140.9,1.99999999]
[1763649038443,18.12096,140.95,140.92,1.99999999]
[1763649038646,1.74,140.94,140.88,2.19999999]
[1763649038816,1.74,140.94,140.91,1.99999999]
[1763649039012,1.74,140.98,140.94,1.99999999]
[1763649039218,9.78882769,140.97,140.91,1.99999999]
[1763649039441,18.12096,140.94,140.91,1.99999999]
[1763649039642,19.86096,140.94,140.91,1.99999999]
[1763649040157,1.74,140.94,140.92,1.99999999]
[1763649040448,1.74,140.94,140.93,1.99999999]
[1763649040950,24.82973892,140.96,140.93,1.99999999]
[1763649041145,26.95477647,140.97,140.93,1.99999999]
[1763649041446,26.95477647,140.97,140.89,7.0973943]
[1763649041447,1.74,140.97,140.94,2.69999999]
[1763649041643,1.74,140.97,140.95,1.99999999]
[1763649041948,8.83373282,140.97,140.94,1.99999999]
[1763649042143,8.83373282,140.97,140.95,1.99999999]
[1763649042329,8.83373282,140.97,140.94,1.99999999]
[1763649042528,26.56800252,140.97,140.91,1.99999999]
[1763649042728,26.56800252,140.97,140.88,0.2]
[1763649042729,18.12096,140.94,140.88,0.2]
[1763649042943,7.09773582,140.89,140.88,0.2]
[1763649043243,8.83773582,140.89,140.88,0.2]
[1763649043562,26.95668128,140.93,140.89,1.99999999]
[1763649043849,44.69598448,140.93,140.89,1.99999999]
[1763649044143,44.69598448,140.93,140.9,1.99999999]
[1763649044553,44.83598448,140.93,140.88,0.2]
[1763649044847,44.69598448,140.93,140.88,2.19999999]
[1763649045146,18.12096,140.9,140.88,0.2]
[1763649045347,1.74,140.89,140.87,0.2]
[1763649045529,20.00096,140.89,140.87,1e-08]
[1763649045731,19.86096,140.89,140.87,1e-08]
[1763649046455,28.04978769,140.88,140.85,1e-08]
[1763649046657,9.78882769,140.87,140.85,1e-08]
[1763649046827,1.74,140.86,140.85,1e-08]
[1763649047035,26.96020747,140.86,140.85,1e-08]
[1763649047336,18.12096,140.88,140.85,1e-08]
[1763649049145,7.09874352,140.87,140.85,1e-08]
[1763649049532,11.66882769,140.86,140.85,1e-08]
[1763649049745,1.74,140.86,140.85,1e-08]
[1763649049960,19.86096,140.86,140.85,1e-08]
[1763649050335,25.21928894,140.88,140.85,0.66000001]
[1763649050663,0.14,140.95,140.87,1.99999999]
[1763649050664,1.74,140.91,140.87,1.99999999]
[1763649050842,9.78882769,140.95,140.87,14.29587416]
[1763649051033,1.74,140.96,140.92,1.99999999]
[1763649051238,1.74,140.95,140.88,1.99999999]
[1763649051460,1.88,140.95,140.9,1.99999999]
[1763649051764,1.74,140.95,140.9,1.99999999]
[1763649051973,1.74,140.95,140.92,1.99999999]
[1763649052563,1.74,140.95,140.94,1.99999999]
[1763649052938,18.12096,140.97,140.94,2.65999999]
[1763649053358,18.12096,140.97,140.95,0.66]
[1763649053528,19.86096,140.98,140.94,2.65999999]
[1763649053729,1.74,140.98,140.95,1.99999999]
[1763649054057,19.88096,141.01,140.97,1.99999999]
[1763649054442,19.88096,141.01,140.99,1.99999999]
[1763649054443,1.76,141.01,140.99,1.99999999]
[1763649054943,19.88096,141.01,140.96,1.99999999]
[1763649055270,24.82269503,141.0,140.97,0.66]
[1763649055452,1.76,141.01,140.98,1.99999999]
[1763649055961,8.85173232,141.01,140.98,1.99999999]
[1763649056145,0.14,141.0,140.96,1.99999999]
[1763649056331,44.70193138,141.01,140.96,1.99999999]
[1763649056534,9.78882769,140.97,140.93,1.99999999]
[1763649056854,1.74,140.96,140.93,1.99999999]
[1763649057160,1.74,140.96,140.9,1.99999999]
[1763649057340,24.83150052,140.95,140.91,1.99999999]
[1763649057549,1.74,140.96,140.91,1.99999999]
[1763649057759,8.83425535,140.96,140.89,1.99999999]
[1763649057931,26.56978315,140.96,140.92,1.99999999]
[1763649058261,26.56978315,140.96,140.88,1.99999999]
[1763649058454,26.56978315,140.96,140.92,1.99999999]
[1763649058635,18.12096,140.93,140.87,1.99999999]
[1763649058839,18.12096,140.93,140.9,1.99999999]
[1763649058840,19.88096,140.93,140.9,1.99999999]
[1763649059237,19.88096,140.93,140.91,0.66]
[1763649059448,7.0962248,140.92,140.9,2.65999999]
[1763649059645,7.0962248,140.92,140.88,1.99999999]
[1763649059940,24.83678682,140.92,140.87,1.99999999]
[1763649060134,1.76,140.93,140.9,1.99999999]
[1763649060338,1.76,140.98,140.92,1.99999999]
[1763649060672,7.09132027,141.02,140.97,1.99999999]
[1763649060832,50.0,141.16,141.04,1.99999999]
[1763649061039,0.14,141.14,141.03,1.99999999]
[1763649061235,0.1,141.11,141.07,1.99999999]
[1763649061459,7.18678029,141.11,141.09,14.18003397]
[1763649061860,0.1,141.11,141.1,14.84003397]
[1763649062067,35.40808411,141.22,141.15,1.99999999]
[1763649062361,19.4641286,141.21,141.17,12.18003398]
[1763649062548,19.88096,141.21,141.17,1.99999999]
[1763649062749,1.76,141.21,141.17,14.84003397]
[1763649062939,1.76,141.21,141.18,1.99999999]
[1763649063139,1.76,141.21,141.15,1.99999999]
[1763649063352,26.54618254,141.21,141.16,1.99999999]
[1763649063549,26.54618254,141.21,141.15,0.66]
[1763649063550,26.54618254,141.21,141.17,12.24690864]
[1763649063872,35.38861364,141.29,141.21,1.99999999]
[1763649064040,0.1,141.31,141.25,14.24690863]
[1763649064041,7.07714083,141.3,141.25,14.24690863]
[1763649064242,8.83714083,141.3,141.24,1.99999999]
[1763649064565,26.52999291,141.3,141.23,12.24690864]
[1763649064768,0.24,141.29,141.15,2.65999999]
[1763649064958,10.02882769,141.29,141.14,1.99999999]
[1763649065186,18.12096,141.22,141.14,1.99999999]
[1763649065468,18.12096,141.17,141.09,12.24690864]
[1763649065641,1.76,141.16,141.1,12.90690864]
[1763649065842,1.76,141.16,141.1,0.66]
[1763649066174,1.76,141.16,141.11,12.90690864]
[1763649066556,18.12096,141.19,141.15,12.24690864]
[1763649066763,24.78558632,141.22,141.12,0.66]
[1763649066764,9.78882769,141.2,141.12,0.66]
[1763649067070,18.12096,141.17,141.08,0.66]
[1763649067253,1.76,141.16,141.1,12.24690864]
[1763649067449,60.21962449,141.15,141.09,12.24690864]
[1763649067649,7.08424064,141.16,141.14,12.24690864]
[1763649067868,26.96372982,141.19,141.14,12.24690864]
[1763649068077,7.07914483,141.26,141.15,0.66]
[1763649068245,1.76,141.25,141.17,12.24690864]
[1763649068440,18.12096,141.23,141.15,0.66]
[1763649068871,18.12096,141.23,141.17,12.24690864]
[1763649069053,1.76,141.25,141.2,12.24690864]
[1763649069249,1.76,141.25,141.21,12.24690864]
[1763649069448,8.83967847,141.25,141.22,12.24690864]
[1763649069647,7.07967847,141.25,141.16,0.66]
[1763649069853,24.77879351,141.25,141.2,12.24690864]
[1763649070155,42.89975351,141.25,141.19,12.24690864]
[1763649070355,7.07967847,141.25,141.21,12.24690864]
[1763649070554,1.76,141.27,141.23,12.24690864]
[1763649070749,8.83871568,141.27,141.22,12.24690864]
[1763649070956,26.535325,141.27,141.22,12.24690864]
[1763649071155,26.535325,141.27,141.21,0.66]
[1763649071545,1.76,141.27,141.21,0.66]
[1763649071746,1.86,141.31,141.26,12.24690864]
[1763649071975,8.93672588,141.31,141.26,12.24690864]
[1763649072155,1.86,141.31,141.28,12.24690864]
[1763649072345,1.86,141.31,141.3,12.24690864]
[1763649072346,0.1,141.31,141.3,12.24690864]
[1763649072542,7.17668791,141.31,141.28,9.78882769]
[1763649072743,7.17668791,141.31,141.27,0.66]
[1763649072967,7.17668791,141.31,141.28,12.24690864]
[1763649073170,0.1,141.31,141.3,12.24690864]
[1763649073371,1.93593088,141.39,141.33,18.12096]
[1763649073571,9.00857728,141.39,141.34,9.78882769]
[1763649073747,26.6901672,141.39,141.33,0.66]
[1763649073950,18.12096,141.36,141.31,9.78882769]
[1763649074143,18.12096,141.36,141.3,12.24690864]
[1763649074373,18.12096,141.34,141.28,0.66]
[1763649074567,18.12096,141.34,141.29,12.24690864]
[1763649074759,18.12096,141.34,141.29,0.66]
[1763649074950,26.6901672,141.39,141.32,12.24690864]
[1763649075143,26.6901672,141.39,141.3,0.66]
[1763649075144,1.76,141.38,141.31,9.78882769]
[1763649075348,1.93593088,141.39,141.37,12.24690864]
[1763649075578,1.93593088,141.39,141.33,9.78882769]